[Event "ESTCC U50 2018"]
[Site "Walbrzych"]
[Date "2018.04.21"]
[Round "8"]
[White "Salonen, Jyrki"]
[Black "Akkanen, Timo"]
[Result "1-0"]
[ECO "C23"]
[WhiteElo "2159"]
[BlackElo "1667"]
[Annotator "NA"]
[PlyCount "99"]
[EventDate "2018.??.??"]
[EventCountry "POL"]
[SourceTitle "playchess.com"]
[Source "ChessBase"]
[SourceQuality "1"]
[WhiteTeam "Finland"]
[BlackTeam "Finland"]
[WhiteTeamCountry "FIN"]
[BlackTeamCountry "FIN"]
[TimeControl "40/5400+30:1800+30"]

1. e4 {[%emt 0:00:00]} e5 {[%emt 0:01:14]} 2. Bc4 {[%emt 0:01:19]} Bc5 {[%emt 0:01:47]} 3. Nf3 {[%emt 0:01:27]} d6 {[%emt 0:02:05]} 4. c3 {[%emt 0:04:00]} Nf6 {[%emt 0:00:28]} 5. d3 {[%emt 0:06:01]} h6 {[%emt 0:00:15]} 6. h3 {[%emt 0:02:22]} O-O {[%emt 0:01:55]} 7. O-O {[%emt 0:04:27]} Nc6 {[%emt 0:02:22]} 8. Re1 {[%emt 0:03:50]} Re8 {[%emt 0:02:31] LiveBook: 9 Games C54: Giuoco Piano: 4 c3 Nf6, main lines with 5 d4 and 5 d3} (8... a6 9. a4 Re8 10. b4 Ba7 11. Nbd2 Be6 12. Bxe6 Rxe6 13. Qc2 Qd7 14. Nf1 Ne7 15. Ng3 Ng6 16. c4 {½-½ (45) Karjakin,S (2763)-Anand,V (2776) Moscow 2018}) 9. Nbd2 {[%emt 0:07:10]} Bb6 {[%emt 0:07:22]} 10. Qe2 $146 {[%emt 0:06:01]} (10. b4 $14) ({Find the theoretical novelty and annotate with similar games:} 10. a4 a6 11. Nf1 Be6 12. Bb3 d5 13. exd5 Bxd5 14. Bc2 e4 15. dxe4 Bxe4 16. Bxe4 {½-½ (16) Degraeve,J (2569)-Dorfman,J (2583) Belfort 2010}) 10... Qe7 {[%emt 0:03:35]} 11. Nf1 {[%emt 0:03:31]} Be6 {[%emt 0:04:33]} 12. Bb5 {[%emt 0:02:42]} a6 {[%emt 0:00:31]} 13. Ba4 {[%emt 0:01:12]} Ba7 {[%emt 0:00:21]} 14. Ng3 {[%emt 0:01:40]} b5 {[%emt 0:00:40]} 15. Bc2 {[%emt 0:00:30]} Qd7 {[%emt 0:03:13]} 16. Kh2 {[%emt 0:11:55]} Kh7 {[%emt 0:03:14]} 17. Nh4 {[%emt 0:02:46]} Ne7 {[%emt 0:01:20]} 18. d4 {[%emt 0:02:23]} Bc4 {[%emt 0:06:31]} 19. Qd2 {[%emt 0:02:37]} c6 {[%emt 0:09:40]} 20. b3 {[%emt 0:01:30]} Be6 {[%emt 0:00:15]} 21. d5 {[%emt 0:00:30]} Bg4 {[%emt 0:00:42]} 22. f3 {[%emt 0:06:13]} g5 {[%emt 0:01:26]} 23. dxc6 {[%emt 0:04:42]} Qxc6 {[%emt 0:01:23]} 24. hxg4 {[%emt 0:02:10]} gxh4 {[%emt 0:00:29]} 25. Nf5 {[%emt 0:07:55]} Nxf5 {[%emt 0:01:01]} 26. exf5 {[%emt 0:00:11]} Ng8 {[%emt 0:02:43]} 27. Be4 {[%emt 0:02:30]} Qb6 {[%emt 0:09:42]} 28. Bxa8 $18 {[%emt 0:00:22]} Rxa8 {[%emt 0:00:04]} 29. Qe3 {[%emt 0:02:18]} Qb7 {[%emt 0:02:15]} 30. Qd3 {[%emt 0:01:49]} f6 {[%emt 0:02:53]} 31. Be3 {[%emt 0:00:20]} Bb8 {[%emt 0:01:21]} 32. Rad1 {[%emt 0:02:27]} Ne7 {[%emt 0:00:29]} 33. Qd2 {[%emt 0:01:07]} Ng8 {[%emt 0:05:57]} 34. Qd5 {[%emt 0:00:35]} Qxd5 {[%emt 0:01:32]} 35. Rxd5 {[%emt 0:00:08]} Ne7 {[%emt 0:00:18]} 36. Rdd1 {[%emt 0:01:00]} a5 {[%emt 0:03:02]} 37. Kh3 {[%emt 0:01:09]} Bc7 {[%emt 0:03:43]} 38. Kxh4 {[%emt 0:00:36]} h5 {[%emt 0:00:36]} 39. Kxh5 {[%emt 0:01:54]} Kg7 {[%emt 0:00:24]} 40. Kh4 {[%emt 0:00:00]} d5 {[%emt 0:01:00]} 41. Kg3 {[%emt 0:01:24]} b4 {[%emt 0:04:29]} 42. cxb4 {[%emt 0:02:51]} d4 {[%emt 0:00:17]} 43. Bd2 {[%emt 0:05:35]} axb4 {[%emt 0:00:49]} 44. Bxb4 {[%emt 0:05:44]} Nd5 {[%emt 0:00:12]} 45. Rc1 {[%emt 0:01:39]} e4+ {[%emt 0:02:57]} 46. Rxc7+ {[%emt 0:00:16]} Nxc7 {[%emt 0:00:14]} 47. Rxe4 {[%emt 0:00:26]} Nb5 {[%emt 0:03:28]} 48. a4 {[%emt 0:00:45]} Nc3 {[%emt 0:00:10]} 49. Bxc3 {[%emt 0:00:17]} dxc3 {[%emt 0:00:05]} 50. Rc4 {[%emt 0:00:11]} 1-0

[Event "ESTCC U50 2018"]
[Site "Walbrzych"]
[Date "2018.04.21"]
[Round "8"]
[White "Ograbek, Grzegorz"]
[Black "Burchardt, Brigitte"]
[Result "0-1"]
[ECO "D46"]
[WhiteElo "2140"]
[BlackElo "2166"]
[Annotator "NA"]
[PlyCount "102"]
[EventDate "2018.??.??"]
[EventCountry "POL"]
[SourceTitle "playchess.com"]
[Source "ChessBase"]
[SourceQuality "1"]
[WhiteTeam "Poland"]
[BlackTeam "Germany"]
[WhiteTeamCountry "POL"]
[BlackTeamCountry "GER"]
[TimeControl "40/5400+30:1800+30"]

1. d4 {[%emt 0:00:00]} d5 {[%emt 0:00:06]} 2. c4 {[%emt 0:00:00]} e6 {[%emt 0:00:04]} 3. Nc3 {[%emt 0:00:00]} Nf6 {[%emt 0:00:08]} 4. Nf3 {[%emt 0:00:13]} c6 {[%emt 0:01:43] LiveBook: 26507 Games} 5. e3 {[%emt 0:02:28]} Nbd7 {[%emt 0:04:44]} 6. Bd3 {[%emt 0:00:09]} Bd6 {[%emt 0:03:43]} 7. O-O {[%emt 0:00:09]} dxc4 {[%emt 0:06:18]} 8. Bxc4 {[%emt 0:00:07]} O-O {[%emt 0:00:05]} 9. e4 {[%emt 0:04:25]} e5 {[%emt 0:03:44]} 10. Bg5 {[%emt 0:01:59]} Qc7 {[%emt 0:18:59]} 11. Rc1 {[%emt 0:35:50]} ({White should play} 11. d5 $14) 11... exd4 {[%emt 0:11:09] D46: Semi-Slav: 5 e3 Nbd7 6 Bd3, Black avoids the Meran} 12. Nb5 $146 {[%emt 0:00:55]} ({Predecessor:} 12. Qxd4 Bf4 13. Nb5 Qb8 14. Bxf4 Qxf4 15. e5 Qxd4 16. Nbxd4 Ng4 17. Rfe1 Nb6 18. Bb3 Nh6 19. e6 fxe6 {1-0 (50) Kahlert,T (2233)-Mueller,M (2246) Germany 2016}) 12... cxb5 {[%emt 0:00:06]} 13. Bxf7+ {[%emt 0:00:10]} Rxf7 {[%emt 0:00:05]} 14. Rxc7 {[%emt 0:00:06]} Bxc7 {[%emt 0:00:05]} 15. Qxd4 {[%emt 0:01:42]} Bb6 {[%emt 0:06:53]} 16. Qb4 {[%emt 0:09:03]} Bc5 {[%emt 0:06:52]} 17. Qb3 {[%emt 0:07:51]} Nxe4 $17 {[%emt 0:04:26]} 18. Be3 {[%emt 0:00:41]} h6 {[%emt 0:11:17]} 19. Rd1 {[%emt 0:00:43]} Bxe3 {[%emt 0:04:33]} 20. fxe3 {[%emt 0:04:36]} Ng5 {[%emt 0:06:32]} 21. Rd5 {[%emt 0:10:58]} Nxf3+ {[%emt 0:00:55]} 22. gxf3 {[%emt 0:00:07]} b6 {[%emt 0:04:03]} 23. e4 {[%emt 0:00:36]} Nf8 {[%emt 0:00:14]} 24. Re5 {[%emt 0:02:14]} Bd7 {[%emt 0:00:37]} 25. Re7 {[%emt 0:00:18]} Be8 {[%emt 0:00:45]} 26. e5 {[%emt 0:11:47]} Ng6 {[%emt 0:01:36]} 27. Rxf7 {[%emt 0:03:13]} Bxf7 {[%emt 0:00:05]} 28. e6 {[%emt 0:00:08]} Be8 {[%emt 0:00:04]} 29. f4 {[%emt 0:00:10]} Rc8 {[%emt 0:00:55]} 30. f5 {[%emt 0:02:47]} Ne7 {[%emt 0:00:05]} 31. Qf3 {[%emt 0:00:09]} Rc1+ {[%emt 0:00:21]} 32. Kf2 {[%emt 0:00:11]} Rc5 {[%emt 0:00:18]} 33. Qa8 {[%emt 0:00:16]} Rxf5+ {[%emt 0:00:17]} 34. Kg1 {[%emt 0:01:17]} Kf8 {[%emt 0:01:13]} 35. Qxa7 {[%emt 0:00:17]} Nd5 {[%emt 0:00:26]} 36. Qb7 {[%emt 0:01:23]} b4 {[%emt 0:00:15]} 37. h3 {[%emt 0:00:15]} h5 {[%emt 0:00:10]} 38. Qb8 {[%emt 0:00:10]} g6 {[%emt 0:01:23]} 39. Qd8 {[%emt 0:00:05]} g5 {[%emt 0:01:18]} 40. a3 {[%emt 0:00:00]} bxa3 {[%emt 0:00:39]} 41. bxa3 {[%emt 0:02:19]} b5 {[%emt 0:05:00]} 42. Kh2 {[%emt 0:01:04]} Nf6 {[%emt 0:06:25]} 43. Qd6+ {[%emt 0:11:11]} Kg7 {[%emt 0:00:11]} 44. Kg1 {[%emt 0:01:34]} Rd5 {[%emt 0:01:43]} 45. Qe7+ {[%emt 0:00:20]} Kg6 {[%emt 0:00:06]} 46. Qc7 {[%emt 0:01:36]} Kf5 {[%emt 0:01:35]} 47. Qc8 {[%emt 0:02:08]} Re5 {[%emt 0:03:01]} 48. e7+ {[%emt 0:01:35]} Bd7 {[%emt 0:01:27]} 49. Qf8 {[%emt 0:00:25]} Be8 {[%emt 0:01:06]} 50. Kf2 {[%emt 0:01:24]} Kg6 {[%emt 0:01:48]} 51. Kf3 {[%emt 0:02:19]} Rc5 {[%emt 0:00:17]} 0-1

[Event "ESTCC U50 2018"]
[Site "Walbrzych"]
[Date "2018.04.21"]
[Round "8"]
[White "Sazonova, Elena N"]
[Black "Szydelko, Kazimierz"]
[Result "1-0"]
[ECO "B56"]
[WhiteElo "2139"]
[BlackElo "1689"]
[Annotator "NA"]
[PlyCount "53"]
[EventDate "2018.??.??"]
[EventCountry "POL"]
[SourceTitle "playchess.com"]
[Source "ChessBase"]
[SourceQuality "1"]
[WhiteTeam "Russia"]
[BlackTeam "Poland"]
[WhiteTeamCountry "RUS"]
[BlackTeamCountry "POL"]
[TimeControl "40/5400+30:1800+30"]

1. e4 {[%emt 0:00:00]} c5 {[%emt 0:00:10]} 2. Nf3 {[%emt 0:00:00]} d6 {[%emt 0:00:19]} 3. d4 {[%emt 0:00:16]} cxd4 {[%emt 0:00:05]} 4. Nxd4 {[%emt 0:00:05]} Nf6 {[%emt 0:00:10]} 5. Nc3 {[%emt 0:00:07]} Nc6 {[%emt 0:00:19]} 6. f3 {[%emt 0:00:49]} a6 {[%emt 0:02:37] LiveBook: 67 Games} 7. Be3 {[%emt 0:03:40]} Qc7 {[%emt 0:02:07]} 8. g4 {[%emt 0:09:31]} e6 {[%emt 0:00:28]} 9. g5 {[%emt 0:01:09]} Nd7 {[%emt 0:00:20]} 10. Qe2 {[%emt 0:00:46]} b5 {[%emt 0:00:56]} 11. Nxc6 {[%emt 0:08:07]} Qxc6 $11 {[%emt 0:00:14]} 12. Bd4 {[%emt 0:09:12]} Bb7 {[%emt 0:06:37]} 13. O-O-O {[%emt 0:02:47]} Rc8 {[%emt 0:05:55]} 14. Kb1 {[%emt 0:06:00]} Be7 {[%emt 0:12:07]} 15. f4 {[%emt 0:16:28]} e5 {[%emt 0:13:49]} 16. Be3 {[%emt 0:02:54]} Nb6 {[%emt 0:05:49]} 17. Bh3 {[%emt 0:04:30]} Rd8 {[%emt 0:07:40]} 18. Bxb6 {[%emt 0:05:28]} Qxb6 {[%emt 0:00:08]} 19. Nd5 {[%emt 0:00:14]} Bxd5 {[%emt 0:10:34]} 20. exd5 {[%emt 0:00:11]} O-O {[%emt 0:00:30]} 21. Rhg1 {[%emt 0:01:15]} exf4 {[%emt 0:06:52]} 22. g6 {[%emt 0:00:18]} Bf6 {[%emt 0:09:53]} 23. gxf7+ {[%emt 0:00:18]} Kh8 {[%emt 0:02:21]} 24. Be6 {[%emt 0:00:39]} Be5 {[%emt 0:00:27]} 25. Qh5 {[%emt 0:00:30]} g6 {[%emt 0:09:53]} 26. Rxg6 {[%emt 0:00:18]} Qc7 {[%emt 0:01:39]} 27. Rh6 {[%emt 0:00:22]} 1-0

[Event "ESTCC U50 2018"]
[Site "Walbrzych"]
[Date "2018.04.21"]
[Round "8"]
[White "Laszewicz, Pawel"]
[Black "Strutinskaia, Galina"]
[Result "0-1"]
[ECO "B90"]
[WhiteElo "2110"]
[BlackElo "2232"]
[Annotator "NA"]
[PlyCount "160"]
[EventDate "2018.??.??"]
[EventCountry "POL"]
[SourceTitle "playchess.com"]
[Source "ChessBase"]
[SourceQuality "1"]
[WhiteTeam "Poland"]
[BlackTeam "Russia"]
[WhiteTeamCountry "POL"]
[BlackTeamCountry "RUS"]
[TimeControl "40/5400+30:1800+30"]

1. e4 {[%emt 0:00:00]} c5 {[%emt 0:00:05]} 2. Nf3 {[%emt 0:00:00]} d6 {[%emt 0:00:13]} 3. Nc3 {[%emt 0:00:49]} a6 {[%emt 0:01:05]} 4. d4 {[%emt 0:02:32]} cxd4 {[%emt 0:00:09]} 5. Nxd4 {[%emt 0:00:11]} Nf6 {[%emt 0:00:36]} 6. Nb3 {[%emt 0:01:45]} e6 {[%emt 0:05:03] B90: Sicilian Najdorf: Unusual White 6th moves, 6 Be3 Ng4 and 6 Be3 e5} 7. g4 {[%emt 0:09:59]} h6 {[%emt 0:01:24] LiveBook: 5 Games} (7... b5 8. Bg2 Bb7 9. g5 Nfd7 10. O-O Be7 11. f4 O-O 12. Qg4 Re8 13. Be3 Nc6 14. Rad1 {1-0 (51) Demchenko,A (2645)-Areshchenko,A (2652) Tbilisi 2017}) 8. Bg2 {[%emt 0:01:20]} Be7 {[%emt 0:01:44]} 9. Be3 {[%emt 0:01:07]} Nc6 {[%emt 0:00:55]} 10. Qe2 {[%emt 0:03:45]} Qc7 {[%emt 0:01:54]} 11. f4 {[%emt 0:23:47]} Nd7 $146 {[%emt 0:08:34]} ({Predecessor:} 11... b5 12. a3 Bb7 13. O-O-O Rc8 14. Rhe1 {1-0 (57) Marek,M (2435)-Rabatin,J (2299) Ostrava 2016}) 12. h4 {[%emt 0:06:30]} b5 {[%emt 0:00:47]} 13. O-O-O {[%emt 0:10:02]} b4 {[%emt 0:10:06]} 14. Nd5 {[%emt 0:02:56]} exd5 {[%emt 0:01:25]} 15. exd5 {[%emt 0:00:04]} Nce5 {[%emt 0:01:24]} 16. fxe5 {[%emt 0:01:15]} Nxe5 {[%emt 0:00:05]} 17. Rd4 {[%emt 0:11:19]} a5 {[%emt 0:00:41]} 18. Kb1 {[%emt 0:06:52]} Ba6 {[%emt 0:01:24]} 19. Qd1 {[%emt 0:03:44]} Nc4 {[%emt 0:01:01]} 20. Bc1 {[%emt 0:01:23]} a4 {[%emt 0:01:40]} 21. Na1 {[%emt 0:07:43] [#]} Bf6 $1 {[%emt 0:12:05]} 22. Re4+ {[%emt 0:01:05]} (22. g5 $142 Bxd4 23. Qxd4) 22... Kf8 {[%emt 0:00:52]} 23. g5 {[%emt 0:00:27]} Be5 {[%emt 0:01:42]} 24. gxh6 {[%emt 0:01:54]} Rxh6 {[%emt 0:00:31]} 25. Bxh6 {[%emt 0:01:05]} gxh6 {[%emt 0:03:11]} 26. Rxe5 $1 {[%emt 0:00:10]} Nxe5 {[%emt 0:00:42]} 27. Qh5 {[%emt 0:00:17]} Ke7 {[%emt 0:01:10]} 28. Qxh6 {[%emt 0:00:21]} Rg8 {[%emt 0:00:06]} 29. Be4 {[%emt 0:00:13]} Qc5 {[%emt 0:00:55]} 30. Qc1 {[%emt 0:00:54]} Qd4 {[%emt 0:01:22]} 31. Qe1 {[%emt 0:00:32]} a3 {[%emt 0:00:34]} 32. c3 {[%emt 0:00:17]} bxc3 {[%emt 0:01:00]} 33. Nc2 {[%emt 0:00:38]} Qd2 {[%emt 0:04:02]} 34. Qxd2 {[%emt 0:00:21]} cxd2 {[%emt 0:00:01]} 35. Nxa3 {[%emt 0:00:36]} Be2 {[%emt 0:01:04]} 36. Bc2 {[%emt 0:00:33]} Bf3 $19 {[%emt 0:03:44]} 37. Rf1 {[%emt 0:00:24]} Bxd5 {[%emt 0:00:27]} 38. b3 {[%emt 0:00:34]} Rg2 {[%emt 0:00:38]} 39. Kb2 {[%emt 0:00:29]} Nd3+ {[%emt 0:05:34]} 40. Kc3 {[%emt 0:00:00]} Nc1 {[%emt 0:00:13]} 41. Rd1 {[%emt 0:09:04]} Nxa2+ {[%emt 0:00:48]} 42. Kb2 {[%emt 0:02:08]} Nb4 {[%emt 0:01:31]} 43. Kc3 {[%emt 0:02:34]} Nxc2 {[%emt 0:01:06]} 44. Kxc2 {[%emt 0:00:30]} Be4+ {[%emt 0:00:25]} 45. Kc3 {[%emt 0:00:43]} Rg3+ {[%emt 0:00:36]} 46. Kb2 {[%emt 0:05:18]} Bd5 {[%emt 0:02:30]} 47. Nc4 {[%emt 0:00:34]} Bxc4 {[%emt 0:07:46]} 48. bxc4 {[%emt 0:00:03]} Rg2 {[%emt 0:04:01]} 49. Kc3 {[%emt 0:01:07]} Rh2 {[%emt 0:00:08]} 50. Rxd2 {[%emt 0:00:45]} Rxh4 {[%emt 0:00:05]} 51. Re2+ {[%emt 0:01:09]} Kf6 {[%emt 0:00:26]} 52. Re8 {[%emt 0:01:05]} Rf4 {[%emt 0:00:49]} 53. Kd3 {[%emt 0:01:16]} Rf1 {[%emt 0:00:41]} 54. Re2 {[%emt 0:02:04]} Kg5 {[%emt 0:00:45]} 55. Re8 {[%emt 0:01:24]} Rd1+ {[%emt 0:01:12]} 56. Kc2 {[%emt 0:00:29]} Rh1 {[%emt 0:00:52]} 57. Rd8 {[%emt 0:00:58]} Rh6 {[%emt 0:00:10]} 58. Kc3 {[%emt 0:02:45]} Kf5 {[%emt 0:00:31]} 59. Rf8 {[%emt 0:02:47]} Ke6 {[%emt 0:00:23]} 60. Re8+ {[%emt 0:00:15]} Kd7 {[%emt 0:00:23]} 61. Re2 {[%emt 0:00:44]} f5 {[%emt 0:01:14]} 62. Kd4 {[%emt 0:00:44]} Rh1 {[%emt 0:01:33]} 63. Rd2 {[%emt 0:01:21]} Rh4+ {[%emt 0:00:27]} 64. Kd5 {[%emt 0:00:25]} Re4 {[%emt 0:00:06]} 65. Ra2 {[%emt 0:01:03]} Re5+ {[%emt 0:00:13]} 66. Kd4 {[%emt 0:00:02]} Ke6 {[%emt 0:00:22]} 67. Ra8 {[%emt 0:00:18]} f4 {[%emt 0:03:07]} 68. Ra3 {[%emt 0:02:49]} Kf5 {[%emt 0:00:17]} 69. Ra8 {[%emt 0:00:21]} Re6 {[%emt 0:00:39]} 70. Rg8 {[%emt 0:01:15]} Rf6 {[%emt 0:00:46]} 71. Rg1 {[%emt 0:00:29]} Rg6 {[%emt 0:02:15]} 72. Rf1 {[%emt 0:00:56]} Rg2 {[%emt 0:00:31]} 73. Re1 {[%emt 0:00:17]} Rd2+ {[%emt 0:02:08]} 74. Kc3 {[%emt 0:00:02]} Ra2 {[%emt 0:00:19]} 75. Re8 {[%emt 0:00:43]} f3 {[%emt 0:00:26]} 76. Kd4 {[%emt 0:00:48]} Rd2+ {[%emt 0:00:47]} 77. Kc3 {[%emt 0:00:07]} Rd1 {[%emt 0:00:41]} 78. Kc2 {[%emt 0:00:33]} Rd4 {[%emt 0:00:02]} 79. Rf8+ {[%emt 0:00:38]} Kg4 {[%emt 0:00:29]} 80. Kc3 {[%emt 0:00:49]} Rf4 {[%emt 0:00:10]} 0-1

[Event "ESTCC U50 2018"]
[Site "Walbrzych"]
[Date "2018.04.21"]
[Round "8"]
[White "Wagner-Michel, Annett"]
[Black "Wielosz, Jaroslaw"]
[Result "1/2-1/2"]
[ECO "C50"]
[WhiteElo "2104"]
[BlackElo "2038"]
[Annotator "NA"]
[PlyCount "93"]
[EventDate "2018.??.??"]
[EventCountry "POL"]
[SourceTitle "playchess.com"]
[Source "ChessBase"]
[SourceQuality "1"]
[WhiteTeam "Germany"]
[BlackTeam "Poland"]
[WhiteTeamCountry "GER"]
[BlackTeamCountry "POL"]
[TimeControl "40/5400+30:1800+30"]

1. e4 {[%emt 0:00:00]} e5 {[%emt 0:01:22]} 2. Nf3 {[%emt 0:00:00]} Nc6 {[%emt 0:00:15]} 3. Bc4 {[%emt 0:00:00]} Bc5 {[%emt 0:00:12]} 4. O-O {[%emt 0:00:15]} Nf6 {[%emt 0:00:21]} 5. d3 {[%emt 0:00:23]} d6 {[%emt 0:00:37]} 6. Nc3 {[%emt 0:00:43]} h6 {[%emt 0:06:31]} 7. h3 {[%emt 0:02:36]} O-O {[%emt 0:05:21]} 8. Na4 {[%emt 0:03:22]} Bb6 {[%emt 0:01:40] LiveBook: 7 Games} 9. a3 {[%emt 0:02:48]} Ne7 {[%emt 0:12:12]} 10. Nxb6 {[%emt 0:04:19]} axb6 {[%emt 0:00:12]} 11. Re1 {[%emt 0:03:32] C50: Hungarian Defence and Giuoco Pianissimo} Ng6 {[%emt 0:01:55]} 12. d4 {[%emt 0:03:54]} Qe7 {[%emt 0:01:25]} 13. Qe2 $146 {[%emt 0:07:04]} ({Find the theoretical novelty and annotate with similar games:} 13. Bd2 Be6 14. Qe2 Nh5 15. dxe5 Nhf4 16. Qf1 dxe5 17. Rad1 Rfd8 18. Bxf4 Bxc4 19. Qxc4 Nxf4 {½-½ (19) Rodriguez Vila,A (2468)-Vocaturo,D (2606) Antofagasta 2017}) 13... Nh5 {[%emt 0:08:30]} 14. c3 {[%emt 0:16:23]} Bd7 {[%emt 0:07:12]} 15. Kh2 {[%emt 0:04:04]} Nhf4 {[%emt 0:01:00]} 16. Bxf4 {[%emt 0:11:11]} Nxf4 {[%emt 0:00:10]} 17. Qe3 {[%emt 0:00:24]} Qf6 {[%emt 0:06:01]} 18. Bf1 {[%emt 0:01:55]} Ng6 {[%emt 0:07:33]} 19. g3 {[%emt 0:05:18]} Rfe8 {[%emt 0:03:59]} 20. d5 {[%emt 0:05:42]} Qe7 {[%emt 0:01:54]} 21. Nd2 {[%emt 0:04:41]} Qg5 {[%emt 0:02:53]} 22. Qxg5 {[%emt 0:02:08]} hxg5 {[%emt 0:00:06]} 23. Be2 {[%emt 0:01:01]} Rf8 {[%emt 0:08:08]} 24. Kg2 {[%emt 0:04:20]} Ne7 {[%emt 0:02:00]} 25. Bd3 {[%emt 0:01:32]} f6 {[%emt 0:01:21]} 26. Rh1 $11 {[%emt 0:02:12]} Kf7 {[%emt 0:03:22]} 27. h4 {[%emt 0:01:29]} gxh4 {[%emt 0:02:08]} 28. Rxh4 {[%emt 0:00:03]} Rh8 {[%emt 0:01:15]} 29. Rah1 {[%emt 0:00:08]} Ng6 {[%emt 0:01:27]} 30. Rxh8 {[%emt 0:01:04]} Rxh8 {[%emt 0:00:09]} 31. Rxh8 {[%emt 0:00:10]} Nxh8 {[%emt 0:00:05]} 32. Be2 {[%emt 0:00:11]} g6 {[%emt 0:02:33]} 33. Kf3 {[%emt 0:02:43]} Kg7 {[%emt 0:01:40]} 34. Ke3 {[%emt 0:00:17]} Nf7 {[%emt 0:00:30]} 35. f4 {[%emt 0:00:13]} exf4+ {[%emt 0:02:20]} 36. gxf4 {[%emt 0:00:04]} g5 {[%emt 0:00:58]} 37. Nf3 {[%emt 0:02:06]} gxf4+ {[%emt 0:03:36]} 38. Kxf4 {[%emt 0:01:16]} Kf8 {[%emt 0:02:42]} 39. Nd4 {[%emt 0:01:29]} Ke7 {[%emt 0:01:07]} 40. Bb5 {[%emt 0:00:00]} Bh3 {[%emt 0:01:48]} 41. Be2 {[%emt 0:04:29]} Ne5 {[%emt 0:01:32]} 42. Nb5 {[%emt 0:00:50]} Kd8 {[%emt 0:01:17]} 43. b3 {[%emt 0:05:08]} Bd7 {[%emt 0:00:59]} 44. Nd4 {[%emt 0:00:23]} Ng6+ {[%emt 0:01:49]} 45. Ke3 {[%emt 0:00:28]} Ke7 {[%emt 0:02:01]} 46. Bb5 {[%emt 0:03:36]} Bc8 {[%emt 0:01:14]} 47. Bf1 1/2-1/2

[Event "ESTCC U50 2018"]
[Site "Walbrzych"]
[Date "2018.04.21"]
[Round "8"]
[White "Bowmer, Kevin"]
[Black "Giulian, Rosemary A"]
[Result "1/2-1/2"]
[ECO "C10"]
[WhiteElo "2064"]
[BlackElo "1880"]
[Annotator "NA"]
[PlyCount "37"]
[EventDate "2018.??.??"]
[EventCountry "POL"]
[SourceTitle "playchess.com"]
[Source "ChessBase"]
[SourceQuality "1"]
[WhiteTeam "England"]
[BlackTeam "Scotland"]
[WhiteTeamCountry "ENG"]
[BlackTeamCountry "SCO"]
[TimeControl "40/5400+30:1800+30"]

1. e4 {[%emt 0:00:00]} e6 {[%emt 0:00:12]} 2. d4 {[%emt 0:00:00]} d5 {[%emt 0:00:17]} 3. Nd2 {[%emt 0:00:00]} dxe4 {[%emt 0:00:05]} 4. Nxe4 {[%emt 0:00:10]} Nd7 {[%emt 0:00:08]} 5. Nf3 {[%emt 0:01:19]} Ngf6 {[%emt 0:00:08]} 6. Nxf6+ {[%emt 0:00:42]} Nxf6 {[%emt 0:00:08]} 7. c3 {[%emt 0:00:11]} Be7 {[%emt 0:00:28]} 8. Bd3 {[%emt 0:02:14]} O-O {[%emt 0:00:09]} 9. Qc2 {[%emt 0:00:58]} h6 {[%emt 0:00:41]} 10. Bf4 {[%emt 0:21:05]} Bd6 {[%emt 0:02:10]} 11. Bg3 {[%emt 0:08:09]} b6 {[%emt 0:07:19]} 12. O-O {[%emt 0:06:18]} Bb7 {[%emt 0:01:43]} 13. Nd2 {[%emt 0:01:57]} Bxg3 {[%emt 0:02:09]} 14. fxg3 {[%emt 0:03:13]} Qe7 {[%emt 0:00:12]} 15. Ne4 {[%emt 0:01:49]} Nxe4 {[%emt 0:00:19]} 16. Bxe4 {[%emt 0:00:15]} Bxe4 {[%emt 0:02:29]} 17. Qxe4 {[%emt 0:03:24]} Qd6 {[%emt 0:00:58]} 18. Rad1 {[%emt 0:01:30]} Rad8 $11 {[%emt 0:00:22]} 19. Qf4 {[%emt 0:10:05]} 1/2-1/2

[Event "ESTCC U50 2018"]
[Site "Walbrzych"]
[Date "2018.04.21"]
[Round "8"]
[White "Van de Wynkele, Herman"]
[Black "Aegerter, Klaus"]
[Result "1-0"]
[ECO "B06"]
[WhiteElo "2048"]
[BlackElo "1731"]
[Annotator "NA"]
[PlyCount "47"]
[EventDate "2018.??.??"]
[EventCountry "POL"]
[SourceTitle "playchess.com"]
[Source "ChessBase"]
[SourceQuality "1"]
[WhiteTeam "Belgium"]
[BlackTeam "Switzerland"]
[WhiteTeamCountry "BEL"]
[BlackTeamCountry "SUI"]
[TimeControl "40/5400+30:1800+30"]

1. e4 {[%emt 0:00:00]} g6 {[%emt 0:00:10]} 2. d4 {[%emt 0:00:00]} d6 {[%emt 0:00:21]} 3. Nc3 {[%emt 0:00:00]} Bg7 {[%emt 0:00:13]} 4. Be3 {[%emt 0:00:00]} a6 {[%emt 0:00:38]} 5. Qd2 {[%emt 0:02:03]} Nf6 {[%emt 0:01:23]} 6. f3 {[%emt 0:00:08]} b5 {[%emt 0:00:52] LiveBook: 29 Games} 7. O-O-O {[%emt 0:00:16]} Bb7 {[%emt 0:05:35]} 8. g4 {[%emt 0:00:15]} h5 {[%emt 0:03:37]} 9. gxh5 {[%emt 0:03:21]} Nxh5 {[%emt 0:02:15]} 10. Nh3 {[%emt 0:01:11]} Nc6 {[%emt 0:04:32]} 11. Ne2 {[%emt 0:06:48]} f6 {[%emt 0:10:25]} 12. Nhf4 {[%emt 0:03:42]} Kf7 {[%emt 0:04:50]} ({But not} 12... Nxf4 $6 13. Nxf4 Kf7 14. d5) 13. Nxh5 {[%emt 0:13:48]} Rxh5 {[%emt 0:00:47]} 14. Nf4 {[%emt 0:01:41]} Rh7 {[%emt 0:01:56]} 15. d5 $18 {[%emt 0:08:50]} Ne5 {[%emt 0:03:04]} 16. Ne6 {[%emt 0:00:06]} Qh8 {[%emt 0:01:11]} 17. Qg2 {[%emt 0:02:40]} c6 {[%emt 0:07:28]} 18. f4 {[%emt 0:02:38]} Bh6 {[%emt 0:02:42]} 19. Be2 {[%emt 0:04:48]} Nc4 {[%emt 0:03:11]} 20. Bd4 {[%emt 0:05:36]} c5 {[%emt 0:05:36]} 21. Rdg1 {[%emt 0:02:12]} Rg8 {[%emt 0:06:59]} 22. Bxc4 {[%emt 0:01:56]} cxd4 {[%emt 0:03:10]} 23. Be2 {[%emt 0:02:37]} Bg7 {[%emt 0:12:07]} 24. Qxg6# {[%emt 0:00:20] Bh6 Qg2} 1-0